fUSD/lending_fUSD_20260601
["ID","MTS","AMOUNT","RATE_DAILY","PERIOD"]
[423641076,1780271455000,-200.0,0.00033084,2]
[423641073,1780271455000,-200.0,0.00033084,2]
[423641086,1780271455000,-200.0,0.00033084,2]
[423641096,1780271455000,-1980.8648231,0.00033414,2]
[423641082,1780271455000,-200.0,0.00033084,2]
[423641090,1780271455000,-200.0,0.00033084,2]
[423641091,1780271455000,-200.0,0.00033084,2]
[423641081,1780271455000,-200.0,0.00033084,2]
[423641093,1780271455000,-2588.411,0.00033282,35]
[423641095,1780271455000,-1500.0,0.000334,7]
[423641107,1780271455000,-201.65895795,0.00033569,30]
[423641105,1780271455000,-632.0,0.00033545,9]
[423641106,1780271455000,-210.17944749,0.00033562,30]
[423641094,1780271455000,-433.20822678,0.00033326,2]
[423641102,1780271455000,-1234.37497225,0.000335,2]
[423641098,1780271455000,-1000.92020843,0.00033472,2]
[423641101,1780271455000,-701.23,0.000335,30]
[423641079,1780271455000,-200.0,0.00033084,2]
[423641088,1780271455000,-200.0,0.00033084,2]
[423641075,1780271455000,-200.0,0.00033084,2]
[423641049,1780271455000,-200.0,0.00033084,2]
[423641077,1780271455000,-200.0,0.00033084,2]
[423641040,1780271455000,-200.0,0.00033084,2]
[423641042,1780271455000,-200.0,0.00033084,2]
[423641052,1780271455000,-200.0,0.00033084,2]
[423641053,1780271455000,-200.0,0.00033084,2]
[423641054,1780271455000,-166.0,0.00033084,2]
[423641043,1780271455000,-200.0,0.00033084,2]
[423641041,1780271455000,-200.0,0.00033084,2]
[423641044,1780271455000,-200.0,0.00033084,2]
[423641045,1780271455000,-200.0,0.00033084,2]
[423641051,1780271455000,-200.0,0.00033084,2]
[423641050,1780271455000,-200.0,0.00033084,2]
[423641097,1780271455000,-1520.24509226,0.00033425,7]
[423641046,1780271455000,-200.0,0.00033084,2]
[423641047,1780271455000,-200.0,0.00033084,2]
[423641048,1780271455000,-200.0,0.00033084,2]
[423641055,1780271455000,-200.0,0.00033084,2]
[423641058,1780271455000,-200.0,0.00033084,2]
[423641057,1780271455000,-200.0,0.00033084,2]
[423641056,1780271455000,-200.0,0.00033084,2]
[423641059,1780271455000,-200.0,0.00033084,2]
[423641060,1780271455000,-200.0,0.00033084,2]
[423641066,1780271455000,-200.0,0.00033084,2]
[423641067,1780271455000,-200.0,0.00033084,2]
[423641062,1780271455000,-200.0,0.00033084,2]
[423641061,1780271455000,-200.0,0.00033084,2]
[423641065,1780271455000,-200.0,0.00033084,2]
[423641064,1780271455000,-200.0,0.00033084,2]
[423641063,1780271455000,-200.0,0.00033084,2]
[423641068,1780271455000,-200.0,0.00033084,2]
[423641078,1780271455000,-200.0,0.00033084,2]
[423641099,1780271455000,-313.6,0.000335,30]
[423641092,1780271455000,-154.0,0.00033084,2]
[423641104,1780271455000,-244.19,0.0003351,7]
[423641139,1780271455000,-350.0,0.00033973,5]
[423641142,1780271455000,-427.11944748,0.00034075,30]
[423641140,1780271455000,-750.0,0.00034,2]
[423641135,1780271455000,-1133.32605408,0.00033965,2]
[423641138,1780271455000,-1164.22877619,0.00033965,2]
[423641147,1780271455000,-1890.86064703,0.00034088,2]
[423641148,1780271455000,-4260.94,0.00034177,30]
[423641146,1780271455000,-1967.6267429,0.00034088,2]
[423641158,1780271455000,-153.13860329,0.00034406,2]
[423641157,1780271455000,-701.23,0.000344,30]
[423641149,1780271455000,-249.76,0.0003418,7]
[423641159,1780271455000,-407.0,0.00034453,2]
[423641154,1780271455000,-246.8,0.00034347,7]
[423641156,1780271455000,-211.36316007,0.0003437,2]
[423641141,1780271455000,-236.16,0.00034012,7]
[423641155,1780271455000,-4769.70241981,0.0003437,2]
[423641152,1780271455000,-2000.0,0.00034247,30]
[423641151,1780271455000,-150.0,0.0003419,2]
[423641161,1780271455000,-407.0,0.00034453,2]
[423641160,1780271455000,-407.0,0.00034453,2]
[423641165,1780271455000,-400.0,0.00034453,2]
[423641164,1780271455000,-150.0,0.00034453,2]
[423641162,1780271455000,-150.0,0.00034453,2]
[423641167,1780271455000,-400.0,0.00034453,2]
[423641163,1780271455000,-150.0,0.00034453,2]
[423641170,1780271455000,-1852.621902,0.0003447,7]
[423641169,1780271455000,-1852.621902,0.0003447,7]
[423641166,1780271455000,-400.0,0.00034453,2]
[423641100,1780271455000,-3012.5,0.000335,14]
[423641168,1780271455000,-12555.0403117,0.00034468,2]
[423641150,1780271455000,-531.6,0.00034182,7]
[423641137,1780271455000,-1175.2488183,0.00033965,2]
[423641153,1780271455000,-150.0,0.00034334,2]
[423641134,1780271455000,-1182.66850352,0.00033965,2]
[423641103,1780271455000,-2266.0,0.000335,7]
[423641108,1780271455000,-763.1,0.00033662,14]
[423641136,1780271455000,-1164.02291238,0.00033965,2]
[423641112,1780271455000,-265.0,0.00033712,30]
[423641113,1780271455000,-1097.0,0.00033712,30]
[423641111,1780271455000,-507.0,0.00033712,30]
[423641114,1780271455000,-691.0,0.00033712,30]
[423641115,1780271455000,-157.0,0.00033747,30]
[423641110,1780271455000,-387.0,0.00033712,30]
[423641109,1780271455000,-253.12,0.00033677,7]
[423641117,1780271455000,-1179.0,0.00033747,30]
[423641118,1780271455000,-288.0,0.00033747,30]
[423641120,1780271455000,-995.0,0.00033747,30]
[423641121,1780271455000,-156.0,0.00033747,30]
[423641122,1780271455000,-1196.0,0.00033747,30]
[423641116,1780271455000,-158.0,0.00033747,30]
[423641123,1780271455000,-251.64,0.00033845,7]
[423641132,1780271455000,-1130.47595034,0.00033965,2]
[423641145,1780271455000,-1821.07058715,0.00034088,2]
[423641127,1780271455000,-20142.36,0.000339,2]
[423641143,1780271455000,-632.0,0.00034079,9]
[423641133,1780271455000,-1072.5307286,0.00033965,2]
[423641131,1780271455000,-1250.12443683,0.00033965,2]
[423641130,1780271455000,-1220.50196595,0.00033965,2]
[423641119,1780271455000,-186.0,0.00033747,30]
[423641144,1780271455000,-1613.76425717,0.00034088,2]
[423641128,1780271455000,-2054.15682156,0.00033962,2]
[423641124,1780271455000,-8594.08,0.000339,2]
[423641126,1780271455000,-4834.17,0.000339,2]
[423641129,1780271455000,-1260.9458341,0.00033965,2]
[423641125,1780271455000,-274.93,0.000339,120]
[423641228,1780271456000,-161.08417232,0.00035,30]
[423641229,1780271456000,-545246.31332924,0.00035,2]
[423641217,1780271456000,-1042433.86195223,0.000349,3]
[423641212,1780271456000,-1070.98312121,0.00034762,20]
[423641209,1780271456000,-1131.51392363,0.00034762,20]
[423641213,1780271456000,-1390.08450583,0.00034762,20]
[423641211,1780271456000,-1017.27410436,0.00034762,20]
[423641207,1780271456000,-1067.8249461,0.00034762,20]
[423641210,1780271456000,-1039.66279601,0.00034762,20]
[423641214,1780271456000,-1500.0,0.00034795,2]
[423641203,1780271456000,-186.0,0.00034747,30]
[423641215,1780271456000,-9778.57841304,0.000348,2]
[423641227,1780271456000,-182.1819368,0.00035,120]
[423641208,1780271456000,-1043.31757847,0.00034762,20]
[423641216,1780271456000,-1001.0,0.00034849,120]
[423641241,1780271456000,-1546.0,0.00035425,7]
[423641218,1780271456000,-239.535013,0.000349,7]
[423641224,1780271456000,-151.0,0.00034997,14]
[423641222,1780271456000,-4917.82941975,0.0003495,5]
[423641226,1780271456000,-1954.28643989,0.00035,2]
[423641223,1780271456000,-10259.85300746,0.0003495,5]
[423641220,1780271456000,-413.61503396,0.00034924,5]
[423641221,1780271456000,-350.0,0.00034931,5]
[423641230,1780271456000,-2000.0,0.00035,7]
[423641233,1780271456000,-632.0,0.00035147,10]
[423641243,1780271456000,-1546.0,0.00035425,7]
[423641234,1780271456000,-701.23,0.000354,30]
[423641237,1780271456000,-3550.0,0.00035413,2]
[423641232,1780271456000,-315.84,0.0003513,30]
[423641205,1780271456000,-156.0,0.00034747,30]
[423641219,1780271456000,-500.0,0.00034904,2]
[423641206,1780271456000,-1196.0,0.00034747,30]
[423641172,1780271456000,-1852.621912,0.0003447,7]
[423641202,1780271456000,-288.0,0.00034747,30]
[423641242,1780271456000,-1546.0,0.00035425,7]
[423641171,1780271456000,-1852.621902,0.0003447,7]
[423641173,1780271456000,-200.162005,0.0003447,7]
[423641174,1780271456000,-151.0,0.0003447,7]
[423641175,1780271456000,-151.0,0.0003447,7]
[423641177,1780271456000,-5671.895702,0.0003447,2]
[423641187,1780271456000,-632.0,0.00034613,10]
[423641176,1780271456000,-239.6554,0.0003447,7]
[423641186,1780271456000,-481.35944749,0.00034589,30]
[423641185,1780271456000,-176.81,0.00034521,120]
[423641182,1780271456000,-3012.5,0.000345,14]
[423641181,1780271456000,-313.6,0.000345,30]
[423641180,1780271456000,-657011.6241483,0.0003447,2]
[423641178,1780271456000,-657011.6241483,0.0003447,2]
[423641183,1780271456000,-5000.0,0.000345,14]
[423641184,1780271456000,-530.43,0.00034521,120]
[423641179,1780271456000,-5671.8957019,0.0003447,2]
[423641197,1780271456000,-1097.0,0.00034712,30]
[423641196,1780271456000,-265.0,0.00034712,30]
[423641194,1780271456000,-387.0,0.00034712,30]
[423641193,1780271456000,-153.0,0.00034695,7]
[423641192,1780271456000,-153.0,0.00034695,7]
[423641198,1780271456000,-691.0,0.00034712,30]
[423641204,1780271456000,-995.0,0.00034747,30]
[423641201,1780271456000,-1179.0,0.00034747,30]
[423641195,1780271456000,-507.0,0.00034712,30]
[423641190,1780271456000,-151.0,0.00034695,7]
[423641191,1780271456000,-151.0,0.00034695,7]
[423641199,1780271456000,-157.0,0.00034747,30]
[423641188,1780271456000,-200.0,0.00034658,10]
[423641189,1780271456000,-189.18090508,0.0003469,2]
[423641200,1780271456000,-158.0,0.00034747,30]
[423641236,1780271456000,-1184.8224,0.000354,120]
[423641225,1780271456000,-450.4515218,0.00035,7]
[423641231,1780271456000,-535.58944749,0.00035103,30]
[423641284,1780271456000,-300.0,0.00035551,2]
[423641279,1780271456000,-300.0,0.00035551,2]
[423641274,1780271456000,-300.0,0.00035551,2]
[423641272,1780271456000,-1676.43,0.00035551,2]
[423641278,1780271456000,-325.24093541,0.00035551,2]
[423641275,1780271456000,-300.0,0.00035551,2]
[423641277,1780271456000,-300.0,0.00035551,2]
[423641281,1780271456000,-300.0,0.00035551,2]
[423641276,1780271456000,-300.0,0.00035551,2]
[423641280,1780271456000,-1097.16968584,0.00035551,2]
[423641286,1780271456000,-300.0,0.00035551,2]
[423641290,1780271456000,-300.0,0.00035551,2]
[423641288,1780271456000,-300.0,0.00035551,2]
[423641289,1780271456000,-300.0,0.00035551,2]
[423641285,1780271456000,-300.0,0.00035551,2]
[423641291,1780271456000,-300.0,0.00035551,2]
[423641294,1780271456000,-493.71853303,0.00035551,2]
[423641297,1780271456000,-300.0,0.00035551,2]
[423641293,1780271456000,-300.0,0.00035551,2]
[423641295,1780271456000,-300.0,0.00035551,2]
[423641296,1780271456000,-300.0,0.00035551,2]
[423641292,1780271456000,-300.0,0.00035551,2]
[423641298,1780271456000,-300.0,0.00035551,2]
[423641300,1780271456000,-300.0,0.00035551,2]
[423641299,1780271456000,-605.70713704,0.00035551,2]
[423641305,1780271456000,-535.11946239,0.00035551,2]
[423641301,1780271456000,-300.0,0.00035551,2]
[423641304,1780271456000,-1069.16901834,0.00035551,2]
[423641303,1780271456000,-403.31610524,0.00035551,2]
[423641306,1780271456000,-300.0,0.00035551,2]
[423641287,1780271456000,-300.0,0.00035551,2]
[423641283,1780271456000,-300.0,0.00035551,2]
[423641302,1780271456000,-300.0,0.00035551,2]
[423641273,1780271456000,-300.0,0.00035551,2]
[423641249,1780271456000,-1546.0,0.00035425,7]
[423641257,1780271456000,-1546.0,0.00035438,7]
[423641253,1780271456000,-1546.0,0.00035438,7]
[423641247,1780271456000,-1546.0,0.00035425,7]
[423641250,1780271456000,-1546.0,0.00035425,7]
[423641244,1780271456000,-1546.0,0.00035425,7]
[423641254,1780271456000,-1546.0,0.00035438,7]
[423641255,1780271456000,-1546.0,0.00035438,7]
[423641256,1780271456000,-1546.0,0.00035438,7]
[423641245,1780271456000,-1546.0,0.00035425,7]
[423641239,1780271456000,-1226.0,0.00035413,2]
[423641238,1780271456000,-872.136,0.00035413,2]
[423641240,1780271456000,-1546.0,0.00035425,7]
[423641282,1780271456000,-300.0,0.00035551,2]
[423641248,1780271456000,-1546.0,0.00035425,7]
[423641246,1780271456000,-1546.0,0.00035425,7]
[423641235,1780271456000,-1000.0,0.000354,120]
[423641251,1780271456000,-1546.0,0.00035425,7]
[423641252,1780271456000,-1546.0,0.00035438,7]
[423641270,1780271456000,-313.6,0.000355,30]
[423641269,1780271456000,-165.15,0.00035479,120]
[423641265,1780271456000,-151.0,0.00035438,7]
[423641271,1780271456000,-3012.5,0.000355,14]
[423641262,1780271456000,-151.0,0.00035438,7]
[423641263,1780271456000,-151.0,0.00035438,7]
[423641267,1780271456000,-180.08,0.00035471,2]
[423641261,1780271456000,-300.0,0.00035438,7]
[423641264,1780271456000,-151.0,0.00035438,7]
[423641258,1780271456000,-1546.0,0.00035438,7]
[423641268,1780271456000,-180.08,0.00035471,2]
[423641259,1780271456000,-1546.0,0.00035438,7]
[423641260,1780271456000,-1546.0,0.00035438,7]
[423641266,1780271456000,-180.08,0.00035471,2]
[423641350,1780271457000,-452.85549676,0.00035551,2]
[423641348,1780271457000,-578.77492127,0.00035551,2]
[423641337,1780271457000,-300.0,0.00035551,2]
[423641339,1780271457000,-1636.24753201,0.00035551,2]
[423641342,1780271457000,-300.0,0.00035551,2]
[423641346,1780271457000,-464.81458028,0.00035551,2]
[423641344,1780271457000,-300.0,0.00035551,2]
[423641340,1780271457000,-300.0,0.00035551,2]
[423641343,1780271457000,-595.21497888,0.00035551,2]
[423641347,1780271457000,-300.0,0.00035551,2]
[423641345,1780271457000,-300.0,0.00035551,2]
[423641341,1780271457000,-300.0,0.00035551,2]
[423641357,1780271457000,-485.1231417,0.00035551,2]
[423641352,1780271457000,-300.0,0.00035551,2]
[423641354,1780271457000,-300.0,0.00035551,2]
[423641351,1780271457000,-300.0,0.00035551,2]
[423641361,1780271457000,-300.0,0.00035551,2]
[423641362,1780271457000,-300.0,0.00035551,2]
[423641349,1780271457000,-300.0,0.00035551,2]
[423641356,1780271457000,-300.0,0.00035551,2]
[423641358,1780271457000,-310.50110747,0.00035551,2]
[423641355,1780271457000,-300.0,0.00035551,2]
[423641360,1780271457000,-300.0,0.00035551,2]
[423641359,1780271457000,-300.0,0.00035551,2]
[423641374,1780271457000,-300.0,0.00035551,2]
[423641364,1780271457000,-300.0,0.00035551,2]
[423641353,1780271457000,-300.0,0.00035551,2]
[423641338,1780271457000,-300.0,0.00035551,2]
[423641330,1780271457000,-950.98229606,0.00035551,2]
[423641335,1780271457000,-1149.64153705,0.00035551,2]
[423641367,1780271457000,-300.0,0.00035551,2]
[423641308,1780271457000,-300.0,0.00035551,2]
[423641307,1780271457000,-727.57003954,0.00035551,2]
[423641311,1780271457000,-300.0,0.00035551,2]
[423641309,1780271457000,-302.42365621,0.00035551,2]
[423641310,1780271457000,-300.0,0.00035551,2]
[423641313,1780271457000,-300.0,0.00035551,2]
[423641323,1780271457000,-344.67640552,0.00035551,2]
[423641315,1780271457000,-300.0,0.00035551,2]
[423641312,1780271457000,-301.20088581,0.00035551,2]
[423641314,1780271457000,-300.0,0.00035551,2]
[423641316,1780271457000,-300.0,0.00035551,2]
[423641319,1780271457000,-300.0,0.00035551,2]
[423641321,1780271457000,-1264.80678045,0.00035551,2]
[423641322,1780271457000,-300.0,0.00035551,2]
[423641317,1780271457000,-300.0,0.00035551,2]
[423641318,1780271457000,-300.0,0.00035551,2]
[423641324,1780271457000,-527.99519721,0.00035551,2]
[423641326,1780271457000,-300.0,0.00035551,2]
[423641327,1780271457000,-300.0,0.00035551,2]
[423641329,1780271457000,-866.17918798,0.00035551,2]
[423641328,1780271457000,-300.0,0.00035551,2]
[423641325,1780271457000,-300.0,0.00035551,2]
[423641331,1780271457000,-1800.99236666,0.00035551,2]
[423641332,1780271457000,-300.0,0.00035551,2]
[423641333,1780271457000,-300.0,0.00035551,2]
[423641334,1780271457000,-300.0,0.00035551,2]
[423641336,1780271457000,-310.25089904,0.00035551,2]
[423641320,1780271457000,-300.0,0.00035551,2]
[423641369,1780271457000,-300.0,0.00035551,2]
[423641363,1780271457000,-300.0,0.00035551,2]
[423641399,1780271457000,-300.0,0.00035551,2]
[423641398,1780271457000,-300.0,0.00035551,2]
[423641395,1780271457000,-302.42365621,0.00035551,2]
[423641400,1780271457000,-301.20088581,0.00035551,2]
[423641405,1780271457000,-300.0,0.00035551,2]
[423641408,1780271457000,-1264.80678045,0.00035551,2]
[423641415,1780271457000,-300.0,0.00035551,2]
[423641409,1780271457000,-300.0,0.00035551,2]
[423641410,1780271457000,-344.67640552,0.00035551,2]
[423641413,1780271457000,-300.0,0.00035551,2]
[423641407,1780271457000,-300.0,0.00035551,2]
[423641412,1780271457000,-300.0,0.00035551,2]
[423641411,1780271457000,-527.99519721,0.00035551,2]
[423641406,1780271457000,-300.0,0.00035551,2]
[423641416,1780271457000,-866.17918798,0.00035551,2]
[423641418,1780271457000,-1800.99236666,0.00035551,2]
[423641417,1780271457000,-950.98229606,0.00035551,2]
[423641420,1780271457000,-300.0,0.00035551,2]
[423641421,1780271457000,-300.0,0.00035551,2]
[423641419,1780271457000,-300.0,0.00035551,2]
[423641422,1780271457000,-1149.64153705,0.00035551,2]
[423641426,1780271457000,-1636.24753201,0.00035551,2]
[423641427,1780271457000,-300.0,0.00035551,2]
[423641425,1780271457000,-300.0,0.00035551,2]
[423641423,1780271457000,-310.25089904,0.00035551,2]
[423641424,1780271457000,-300.0,0.00035551,2]
[423641375,1780271457000,-300.0,0.00035551,2]
[423641401,1780271457000,-300.0,0.00035551,2]
[423641396,1780271457000,-300.0,0.00035551,2]
[423641414,1780271457000,-300.0,0.00035551,2]
[423641397,1780271457000,-302.53158504,0.00035551,2]
[423641365,1780271457000,-300.0,0.00035551,2]
[423641394,1780271457000,-300.0,0.00035551,2]
[423641366,1780271457000,-1097.16968584,0.00035551,2]
[423641368,1780271457000,-300.0,0.00035551,2]
[423641373,1780271457000,-300.0,0.00035551,2]
[423641370,1780271457000,-300.0,0.00035551,2]
[423641371,1780271457000,-300.0,0.00035551,2]
[423641372,1780271457000,-300.0,0.00035551,2]
[423641377,1780271457000,-300.0,0.00035551,2]
[423641378,1780271457000,-300.51843436,0.00035551,2]
[423641389,1780271457000,-300.0,0.00035551,2]
[423641387,1780271457000,-300.0,0.00035551,2]
[423641384,1780271457000,-300.0,0.00035551,2]
[423641380,1780271457000,-493.71853303,0.00035551,2]
[423641376,1780271457000,-300.0,0.00035551,2]
[423641379,1780271457000,-300.0,0.00035551,2]
[423641404,1780271457000,-300.000001,0.00035551,2]
[423641391,1780271457000,-1069.16901834,0.00035551,2]
[423641393,1780271457000,-727.57003954,0.00035551,2]
[423641403,1780271457000,-300.0,0.00035551,2]
[423641402,1780271457000,-300.0,0.00035551,2]
[423641390,1780271457000,-403.31610524,0.00035551,2]
[423641392,1780271457000,-535.11946239,0.00035551,2]
[423641386,1780271457000,-605.70713704,0.00035551,2]
[423641385,1780271457000,-300.0,0.00035551,2]
[423641381,1780271457000,-300.0,0.00035551,2]
[423641383,1780271457000,-300.0,0.00035551,2]
[423641388,1780271457000,-300.0,0.00035551,2]
[423641382,1780271457000,-300.0,0.00035551,2]
[423641475,1780271458000,-300.0,0.00035551,2]
[423641470,1780271458000,-300.0,0.00035551,2]
[423641476,1780271458000,-300.0,0.00035551,2]
[423641468,1780271458000,-300.0,0.00035551,2]
[423641471,1780271458000,-300.0,0.00035551,2]
[423641469,1780271458000,-300.0,0.00035551,2]
[423641467,1780271458000,-493.38232728,0.00035551,2]
[423641462,1780271458000,-300.0,0.00035551,2]
[423641474,1780271458000,-300.0,0.00035551,2]
[423641473,1780271458000,-605.70713704,0.00035551,2]
[423641465,1780271458000,-300.0,0.00035551,2]
[423641472,1780271458000,-300.0,0.00035551,2]
[423641488,1780271458000,-300.0,0.00035551,2]
[423641466,1780271458000,-493.71853303,0.00035551,2]
[423641487,1780271458000,-300.0,0.00035551,2]
[423641493,1780271458000,-1264.80678045,0.00035551,2]
[423641482,1780271458000,-300.0,0.00035551,2]
[423641464,1780271458000,-300.0,0.00035551,2]
[423641502,1780271458000,-950.98229606,0.00035551,2]
[423641498,1780271458000,-300.0,0.00035551,2]
[423641492,1780271458000,-300.0,0.00035551,2]
[423641491,1780271458000,-300.0,0.00035551,2]
[423641489,1780271458000,-300.0,0.00035551,2]
[423641486,1780271458000,-301.20088581,0.00035551,2]
[423641483,1780271458000,-302.42365621,0.00035551,2]
[423641484,1780271458000,-300.0,0.00035551,2]
[423641485,1780271458000,-300.0,0.00035551,2]
[423641480,1780271458000,-535.11946239,0.00035551,2]
[423641479,1780271458000,-1069.16901834,0.00035551,2]
[423641478,1780271458000,-403.31610524,0.00035551,2]
[423641477,1780271458000,-423.84456931,0.00035551,2]
[423641481,1780271458000,-727.57003954,0.00035551,2]
[423641463,1780271458000,-300.0,0.00035551,2]
[423641428,1780271458000,-300.0,0.00035551,2]
[423641456,1780271458000,-300.0,0.00035551,2]
[423641438,1780271458000,-300.0,0.00035551,2]
[423641440,1780271458000,-300.0,0.00035551,2]
[423641433,1780271458000,-464.81458028,0.00035551,2]
[423641436,1780271458000,-300.0,0.00035551,2]
[423641445,1780271458000,-310.50110747,0.00035551,2]
[423641444,1780271458000,-485.1231417,0.00035551,2]
[423641439,1780271458000,-300.0,0.00035551,2]
[423641446,1780271458000,-300.0,0.00035551,2]
[423641437,1780271458000,-452.85549676,0.00035551,2]
[423641434,1780271458000,-300.0,0.00035551,2]
[423641429,1780271458000,-300.0,0.00035551,2]
[423641432,1780271458000,-300.0,0.00035551,2]
[423641430,1780271458000,-595.21497888,0.00035551,2]
[423641431,1780271458000,-300.0,0.00035551,2]
[423641435,1780271458000,-578.77492127,0.00035551,2]
[423641461,1780271458000,-300.0,0.00035551,2]
[423641443,1780271458000,-300.0,0.00035551,2]
[423641490,1780271458000,-300.0,0.00035551,2]
[423641457,1780271458000,-300.0,0.00035551,2]
[423641455,1780271458000,-300.0,0.00035551,2]
[423641454,1780271458000,-300.0,0.00035551,2]
[423641453,1780271458000,-1097.16968584,0.00035551,2]
[423641450,1780271458000,-300.0,0.00035551,2]
[423641451,1780271458000,-300.0,0.00035551,2]
[423641441,1780271458000,-300.0,0.00035551,2]
[423641452,1780271458000,-300.0,0.00035551,2]
[423641460,1780271458000,-300.0,0.00035551,2]
[423641447,1780271458000,-300.0,0.00035551,2]
[423641458,1780271458000,-300.0,0.00035551,2]
[423641459,1780271458000,-300.0,0.00035551,2]
[423641448,1780271458000,-300.0,0.00035551,2]
[423641442,1780271458000,-300.0,0.00035551,2]
[423641449,1780271458000,-300.0,0.00035551,2]
[423641500,1780271458000,-300.0,0.00035551,2]
[423641557,1780271458000,-300.0,0.00035551,2]
[423641501,1780271458000,-866.17918798,0.00035551,2]
[423641532,1780271458000,-300.0,0.00035551,2]
[423641534,1780271458000,-300.0,0.00035551,2]
[423641535,1780271458000,-300.0,0.00035551,2]
[423641543,1780271458000,-300.0,0.00035551,2]
[423641545,1780271458000,-300.0,0.00035551,2]
[423641536,1780271458000,-300.0,0.00035551,2]
[423641544,1780271458000,-300.0,0.00035551,2]
[423641537,1780271458000,-300.0,0.00035551,2]
[423641539,1780271458000,-300.0,0.00035551,2]
[423641540,1780271458000,-300.0,0.00035551,2]
[423641538,1780271458000,-1097.16968584,0.00035551,2]
[423641546,1780271458000,-300.0,0.00035551,2]
[423641549,1780271458000,-300.0,0.00035551,2]
[423641550,1780271458000,-300.0,0.00035551,2]
[423641547,1780271458000,-300.0,0.00035551,2]
[423641548,1780271458000,-300.0,0.00035551,2]
[423641559,1780271458000,-300.0,0.00035551,2]
[423641563,1780271458000,-403.31610524,0.00035551,2]
[423641564,1780271458000,-1069.16901834,0.00035551,2]
[423641562,1780271458000,-423.84456931,0.00035551,2]
[423641565,1780271458000,-535.11946239,0.00035551,2]
[423641560,1780271458000,-300.0,0.00035551,2]
[423641566,1780271458000,-727.57003954,0.00035551,2]
[423641542,1780271458000,-300.0,0.00035551,2]
[423641561,1780271458000,-300.0,0.00035551,2]
[423641556,1780271458000,-300.0,0.00035551,2]
[423641552,1780271458000,-493.71853303,0.00035551,2]
[423641553,1780271458000,-300.0,0.00035551,2]
[423641555,1780271458000,-300.0,0.00035551,2]
[423641558,1780271458000,-605.70713704,0.00035551,2]
[423641551,1780271458000,-300.0,0.00035551,2]
[423641554,1780271458000,-300.0,0.00035551,2]
[423641533,1780271458000,-300.0,0.00035551,2]
[423641495,1780271458000,-344.67640552,0.00035551,2]
[423641527,1780271458000,-300.0,0.00035551,2]
[423641511,1780271458000,-1636.24753201,0.00035551,2]
[423641509,1780271458000,-300.0,0.00035551,2]
[423641513,1780271458000,-300.0,0.00035551,2]
[423641506,1780271458000,-300.0,0.00035551,2]
[423641517,1780271458000,-300.0,0.00035551,2]
[423641541,1780271458000,-300.0,0.00035551,2]
[423641514,1780271458000,-300.0,0.00035551,2]
[423641504,1780271458000,-300.0,0.00035551,2]
[423641505,1780271458000,-300.0,0.00035551,2]
[423641503,1780271458000,-1800.99236666,0.00035551,2]
[423641497,1780271458000,-300.0,0.00035551,2]
[423641499,1780271458000,-300.0,0.00035551,2]
[423641494,1780271458000,-300.0,0.00035551,2]
[423641496,1780271458000,-527.99519721,0.00035551,2]
[423641515,1780271458000,-595.21497888,0.00035551,2]
[423641507,1780271458000,-1149.64153705,0.00035551,2]
[423641516,1780271458000,-300.0,0.00035551,2]